Department Family,Entity,Date,Expense Type,Expense Area,Supplier,Transaction Number,Amount,,
DOH,London Ambulance Service NHS Trust,11/24/2021,Vehicles,Capital,Vw Group Uk Ltd,591970,660030.1,,
DOH,London Ambulance Service NHS Trust,11/19/2021,Defibrillator Maintenance,Supply & Material Management,Nhs Supply Chain Maintenance,5995,158363.1,,
DOH,London Ambulance Service NHS Trust,11/24/2021,Buildings,Capital,Gwf Generators Ltd,612543,27639.68,,
DOH,London Ambulance Service NHS Trust,11/05/2021,Training Accommodation,International Recruitment 2022,The Independents Hotel Reservations Ltd,616601,43785,,
DOH,London Ambulance Service NHS Trust,11/17/2021,Consultancy Fees,111 Iuc Central Cost,Moorhouse Consulting,620348,52734,,
DOH,London Ambulance Service NHS Trust,11/12/2021,Managed Service - Call Handler,111 Iuc Central Cost,Herts Urgent Care,622504,198306.86,,
DOH,London Ambulance Service NHS Trust,11/03/2021,Make Ready Support,Make Ready Service,Interserve Hospital Services,623077,395106,,
DOH,London Ambulance Service NHS Trust,11/03/2021,Make Ready Support,Covid-19 - Logistics,Interserve Hospital Services,623082,168764.25,,
DOH,London Ambulance Service NHS Trust,11/17/2021,Defibrillator Leases,Covid-19 - Logistics,De Lage Landen Leasing Ltd,623209,43200,,
DOH,London Ambulance Service NHS Trust,11/10/2021,Consultancy/Professional Ppe,Capital,Rider Levett Bucknall Uk Limited,623511,28211.76,,
DOH,London Ambulance Service NHS Trust,11/12/2021,Contract Labour,Vehicle Resouce Centre,Churchill Contract Servic+F12es Ltd,624569,122453.99,,
DOH,London Ambulance Service NHS Trust,11/01/2021,Private Ambulance Hire,Director Of Ambulance Services,Medicare Ems Group Uk Limited,624784,37762.5,,
DOH,London Ambulance Service NHS Trust,11/12/2021,Ambulance Equipment,Supply & Material Management,Stryker Uk Ltd,624795,31489.2,,
DOH,London Ambulance Service NHS Trust,11/05/2021,Professional Fees & Services,Newham Telephony,Solution Performance Group Ltd (Spg),625079,28345.2,,
DOH,London Ambulance Service NHS Trust,11/05/2021,Project Management Services,Newham Telephony,Solution Performance Group Ltd (Spg),625079,22894.2,,
DOH,London Ambulance Service NHS Trust,11/01/2021,Vehicle Recovery,Fleet Support Services,The Mansfield Group,625270,51642.78,,
DOH,London Ambulance Service NHS Trust,11/01/2021,Private Ambulance Hire,Director Of Ambulance Services,Medicare Ems Group Uk Limited,625808,40594.79,,
DOH,London Ambulance Service NHS Trust,11/01/2021,Rent,Hart West,Amas Ltd/Common Receipts Account,625903,30705,,
DOH,London Ambulance Service NHS Trust,11/01/2021,Services Charges,Hart West,Amas Ltd/Common Receipts Account,625903,915,,
DOH,London Ambulance Service NHS Trust,11/17/2021,Managed Service - Call Handler,111 Nwl Operations,Practice Plus Group Urgent Care Limited,625954,733898.26,,
DOH,London Ambulance Service NHS Trust,11/05/2021,Professional Fees & Services,Logistics Support Unit,Johnsons 1871 Limited,626146,48914.4,,
DOH,London Ambulance Service NHS Trust,11/12/2021,Defibrillator Maintenance,Supply & Material Management,Stryker Uk Ltd,626154,-132903.94,,
DOH,London Ambulance Service NHS Trust,11/01/2021,Professional Fees & Services,Director Of Finance,Moorhouse Consulting,626313,51360,,
DOH,London Ambulance Service NHS Trust,11/01/2021,Professional Fees & Services,Im&T Management,Mason Advisory Limited,626497,123190.98,,
DOH,London Ambulance Service NHS Trust,11/01/2021,Professional Fees & Services,Director Of Ambulance Services,Moorhouse Consulting,626501,38311.2,,
DOH,London Ambulance Service NHS Trust,11/05/2021,Project Management Services,Amb Ops Modernisation Prog,Moorhouse Consulting,626506,299779.2,,
DOH,London Ambulance Service NHS Trust,11/01/2021,Project Management Services,Programmes & Projects,Moorhouse Consulting,626508,35286.6,,
DOH,London Ambulance Service NHS Trust,11/05/2021,Project Management Services,Amb Ops Modernisation Prog,Moorhouse Consulting,626514,83937.6,,
DOH,London Ambulance Service NHS Trust,11/01/2021,Cleaning Of Premises,Property Management,Lakethorne Ltd,626524,113708.64,,
DOH,London Ambulance Service NHS Trust,11/01/2021,Professional Fees & Services,Coo Management,Association Of Ambulance Chief Executives,626555,25739.04,,
DOH,London Ambulance Service NHS Trust,11/01/2021,Tyres,Fleet Support Services,Ats Euromaster Ltd,626784,50634.01,,
DOH,London Ambulance Service NHS Trust,11/01/2021,Managed Service - Call Handler,111 Iuc Central Cost,Herts Urgent Care,626790,-28584.4,,
DOH,London Ambulance Service NHS Trust,11/17/2021,Buildings,Capital,Logan Construction,627003,637743.8,,
DOH,London Ambulance Service NHS Trust,11/10/2021,Buildings,Capital,Michael Brady Ltd,627008,294882.42,,
DOH,London Ambulance Service NHS Trust,11/01/2021,Managed Service - Call Handler,111 Iuc Central Cost,Herts Urgent Care,627009,172576.19,,
DOH,London Ambulance Service NHS Trust,11/01/2021,Professional Fees & Services,Property Management,Laser Energy Buying Group,627145,31031.59,,
DOH,London Ambulance Service NHS Trust,11/19/2021,Phone & Fax Line Rental,Networks,Bt Teleworker,627366,76547.2,,
DOH,London Ambulance Service NHS Trust,11/12/2021,Security Firms,Property Management,Lakethorne Ltd,627495,22213.3,,
DOH,London Ambulance Service NHS Trust,11/01/2021,Managed Service - Call Handler,Covid Contingency - Iuc Serv,Dhu 111 (East Midlands) Cic,627685,114438.46,,
DOH,London Ambulance Service NHS Trust,11/01/2021,Agency Incentive & Bonus,111 Sel Operations - Cas,Hays Specialist Recruitment Ltd,627842,44728.02,,
DOH,London Ambulance Service NHS Trust,11/01/2021,Managed Service - Adv Prac,111 Nel Operations - Cas,Hays Specialist Recruitment Ltd,627842,416924.16,,
DOH,London Ambulance Service NHS Trust,11/01/2021,Managed Service - Adv Prac,111 Sel Operations - Cas,Hays Specialist Recruitment Ltd,627842,224845.37,,
DOH,London Ambulance Service NHS Trust,11/01/2021,Managed Service - Call Handler,111 Nel Operations,Hays Specialist Recruitment Ltd,627842,50842.01,,
DOH,London Ambulance Service NHS Trust,11/01/2021,Managed Service - Call Handler,111 Sel Operations,Hays Specialist Recruitment Ltd,627842,46348.16,,
DOH,London Ambulance Service NHS Trust,11/01/2021,Managed Service - Gps,111 Nel Operations - Cas,Hays Specialist Recruitment Ltd,627842,394281.83,,
DOH,London Ambulance Service NHS Trust,11/01/2021,Managed Service - Gps,111 Sel Operations - Cas,Hays Specialist Recruitment Ltd,627842,625472.76,,
DOH,London Ambulance Service NHS Trust,11/01/2021,Managed Service - Nurses,111 Nel Operations - Cas,Hays Specialist Recruitment Ltd,627842,82353.83,,
DOH,London Ambulance Service NHS Trust,11/01/2021,Managed Service - Nurses,111 Sel Operations - Cas,Hays Specialist Recruitment Ltd,627842,60880.94,,
DOH,London Ambulance Service NHS Trust,11/01/2021,Agency Incentive & Bonus,111 Sel Operations,Hays Specialist Recruitment Ltd,627842,"19,264.42",,
DOH,London Ambulance Service NHS Trust,11/01/2021,Agency Incentive & Bonus,111 Nel Operations,Hays Specialist Recruitment Ltd,627842,"6,210.00",,
DOH,London Ambulance Service NHS Trust,11/01/2021,Agency Incentive & Bonus,111 Nel Operations - Cas,Hays Specialist Recruitment Ltd,627842,"23,259.79",,
DOH,London Ambulance Service NHS Trust,11/01/2021,Managed Service - Adv Para Pra,111 Nel Operations - Cas,Hays Specialist Recruitment Ltd,627842,"4,796.08",,
DOH,London Ambulance Service NHS Trust,11/01/2021,Managed Service - Adv Para Pra,111 Sel Operations - Cas,Hays Specialist Recruitment Ltd,627842,"10,806.26",,
DOH,London Ambulance Service NHS Trust,11/05/2021,Electrical Installations,Capital,Norbeck Ltd,627865,48019.2,,
DOH,London Ambulance Service NHS Trust,11/12/2021,Cad Tools Maintenance,Cad Support,Priority Dispatch,627953,100150.99,,
DOH,London Ambulance Service NHS Trust,11/24/2021,Phone & Fax Line Rental,Networks,Vodafone Corporate Limited,627963,25163.86,,
DOH,London Ambulance Service NHS Trust,11/17/2021,Consultancy/Professional Ppe,Capital,Rider Levett Bucknall Uk Limited,628448,29302.27,,
DOH,London Ambulance Service NHS Trust,11/24/2021,Professional Fees & Services,Cyber Security,Isystems Integration Ltd,628591,53520,,
DOH,London Ambulance Service NHS Trust,11/01/2021,Managed Service - Blue Light,Covid-19 - Ambulance Services,Veho Solutions Ltd,628811,43618.8,,
DOH,London Ambulance Service NHS Trust,11/12/2021,Managed Service - Blue Light,Covid-19 - Ambulance Services,Veho Solutions Ltd,628813,67680,,
DOH,London Ambulance Service NHS Trust,11/19/2021,Professional Fees & Services,Programmes & Projects,Moorhouse Consulting,628828,102837,,
DOH,London Ambulance Service NHS Trust,11/03/2021,Make Ready Support,Make Ready Service,Interserve Hospital Services,629033,264526.73,,
DOH,London Ambulance Service NHS Trust,11/17/2021,Buildings,Capital,Logan Construction,629068,80303.95,,
DOH,London Ambulance Service NHS Trust,11/24/2021,Security Firms,Hq Building Services,Profile Security Services Limited,629234,27057.77,,
DOH,London Ambulance Service NHS Trust,11/24/2021,Occupational Health Fees,P&C Management,People Asset Management Ltd,629724,88759.2,,
DOH,London Ambulance Service NHS Trust,11/24/2021,Contract Labour,Vehicle Resouce Centre,Churchill Contract Services Ltd,629852,122453.99,,
DOH,London Ambulance Service NHS Trust,11/19/2021,Mobile Phone Rental,Telecommunications,Vodafone Corporate Limited,630114,123843.7,,
DOH,London Ambulance Service NHS Trust,11/10/2021,Rent,111 Sel Operations,Avison Young (Pma321),630145,60128.26,,
DOH,London Ambulance Service NHS Trust,11/24/2021,Vehicles,Capital,Was Uk Ltd,630392,45801.06,,
DOH,London Ambulance Service NHS Trust,11/24/2021,Communications Installations,Capital,Solution Performance Group Ltd (Spg),630524,225504,,
DOH,London Ambulance Service NHS Trust,11/17/2021,Buildings,Capital,Logan Construction,630645,-45690.11,,
DOH,London Ambulance Service NHS Trust,11/10/2021,Buildings,Capital,Michael Brady Ltd,630893,-294882.42,,
DOH,London Ambulance Service NHS Trust,11/24/2021,Professional Fees & Services,Programmes & Projects,Moorhouse Consulting,631216,164086.8,,
DOH,London Ambulance Service NHS Trust,11/24/2021,Make Ready Support,Make Ready Service,Interserve Hospital Services,631241,264526.73,,
DOH,London Ambulance Service NHS Trust,11/24/2021,Tyres,Fleet Support Services,Ats Euromaster Ltd,631247,40393.42,,
DOH,London Ambulance Service NHS Trust,11/24/2021,Professional Fees & Services,Strategy,Moorhouse Consulting,631264,59340,,
DOH,London Ambulance Service NHS Trust,11/24/2021,Buildings,Capital,Gdp Projects Ltd,631480,48132.64,,
DOH,London Ambulance Service NHS Trust,11/24/2021,Interpretation Services,111 Nel Operations,Language Line,631505,32430.19,,
DOH,London Ambulance Service NHS Trust,11/19/2021,Occupational Health Fees,P&C Management,People Asset Management Ltd,632160,88759.2,,
DOH,London Ambulance Service NHS Trust,11/24/2021,Cleaning Of Premises,Property Management,Lakethorne Ltd,632645,112396,,
DOH,London Ambulance Service NHS Trust,11/19/2021,Buildings,Capital,Logan Construction,632672,306304.24,,
DOH,London Ambulance Service NHS Trust,11/24/2021,Vehicles,Capital,Vw Group Uk Ltd,634133,-599008.18,,
DOH,London Ambulance Service NHS Trust,11/24/2021,Vehicles,Capital,Vw Group Uk Ltd,634134,-61021.92,,
DOH,London Ambulance Service NHS Trust,11/25/2021,Medical Gas,Director Of Ops,British Oxygen,90592,136953.38,,
DOH,London Ambulance Service NHS Trust,11/01/2021,BP Control Account,Balance Sheet,BP Oil,90042,65315.27,,
DOH,London Ambulance Service NHS Trust,11/15/2021,CNST Contributions,Legal Services,NHS Litigation Authority,90380,534810,,
DOH,London Ambulance Service NHS Trust,11/15/2021,Liability to a 3rd Party Scheme,Legal Services,NHS Litigation Authority,90380,53068.3,,
DOH,London Ambulance Service NHS Trust,11/16/2021,Property Expenses Scheme,Legal Services,NHS Litigation Authority,90381,2225.5,,
DOH,London Ambulance Service NHS Trust,11/01/2021,Ensign Insurance Pre-Payment,Balance Sheet,QBE Insurance,90042,334485.41,,
DOH,London Ambulance Service NHS Trust,11/15/2021,BP Control Account,Balance Sheet,BP Oil,90380,123266.02,,
DOH,London Ambulance Service NHS Trust,11/30/2021,BP Control Account,Balance Sheet,BP Oil,90955,140718.23,,
